bitfinex/quotes_SOLUSD_20251009
["timestamp","ask_amount","ask_price","bid_price","bid_amount"]
[1760022968093,0.67000001,221.77,221.71,245.98]
[1760022968482,1e-08,221.77,221.71,245.98]
[1760022969382,1e-08,221.72,221.71,262.06687167]
[1760022969595,1e-08,221.72,221.71,181.96687167]
[1760022969803,1e-08,221.77,221.74,20.8]
[1760022970102,1e-08,221.77,221.75,32.58]
[1760022970491,1e-08,221.77,221.75,165.88]
[1760022970707,1e-08,221.77,221.76,11.57647521]
[1760022971400,1e-08,221.77,221.76,16.08585471]
[1760022971984,1e-08,221.77,221.76,15.38585471]
[1760022972811,1e-08,221.77,221.76,229.46585471]
[1760022973104,1e-08,221.77,221.76,228.78585471]
[1760022973309,1e-08,221.77,221.76,229.46585471]
[1760022973687,0.2,221.86,221.84,10.87647521]
[1760022973893,0.2,221.86,221.85,43.45647521]
[1760022974410,0.2,221.88,221.87,20.8]
[1760022974610,0.2,221.88,221.87,64.25647521]
[1760022974915,1.60540879,222.01,221.87,64.25647521]
[1760022974916,4.21698315,222.01,221.87,78.29581502]
[1760022975235,0.72,221.97,221.91,20.8]
[1760022975382,3.76535277,222.03,221.93,15.77073851]
[1760022975383,0.72,222.03,221.93,15.77073851]
[1760022975591,3.70898947,222.02,221.93,15.77073851]
[1760022975797,3.70898947,222.01,221.94,32.58]
[1760022976007,2.98898947,222.0,221.94,32.58]
[1760022976285,3.70898947,221.99,221.95,32.56]
[1760022976503,0.72,221.99,221.95,32.56]
[1760022976706,0.72,221.98,221.95,32.56]
[1760022977107,0.72,221.98,221.93,4.50592529]
[1760022977325,0.72,221.98,221.94,32.56]
[1760022977525,0.72,221.98,221.95,4.50551926]
[1760022977715,0.72,221.98,221.96,32.56]
[1760022977893,0.45163038,222.04,221.96,32.56]
[1760022978094,3.70332396,222.03,221.96,32.56]
[1760022978323,3.70332396,222.02,221.92,10.87647521]
[1760022978531,3.70332396,222.01,221.93,32.56]
[1760022978710,2.98332396,222.0,221.93,32.56]
[1760022978908,0.72,222.01,221.94,10.87647521]
[1760022979223,0.72,222.01,221.95,32.56]
[1760022979606,0.72,222.01,221.96,4.50531627]
[1760022981021,0.72,222.04,221.96,15.76860695]
[1760022982913,0.72,222.04,221.96,4.50531627]
[1760022983627,0.72,222.03,221.91,31.67647521]
[1760022983928,0.72,222.03,221.92,37.04612833]
[1760022983929,0.72,222.02,221.92,37.04612833]
[1760022984135,0.72,222.01,221.93,32.54]
[1760022984314,0.72,222.0,221.93,32.54]
[1760022984517,1.17163038,221.99,221.88,15.38341589]
[1760022984719,0.72,221.98,221.88,4.50694068]
[1760022984922,0.72,221.98,221.89,32.54]
[1760022985122,0.72,221.97,221.89,32.54]
[1760022985434,0.72,221.96,221.89,32.54]
[1760022985602,0.72,221.96,221.9,4.50653447]
[1760022985801,0.45163038,222.01,221.91,0.68]
[1760022986006,0.72,221.98,221.91,0.68]
[1760022987233,0.72,221.98,221.92,37.04612833]
[1760022989627,0.45163038,222.05,221.92,37.04612833]
[1760022989628,0.72,221.97,221.92,37.04612833]
[1760022990023,0.72,221.99,221.92,37.04612833]
[1760022990332,1.60540879,221.97,221.87,34.15933981]
[1760022990538,1.60540879,221.92,221.77,22.54518654]
[1760022990734,0.72,221.91,221.81,0.68]
[1760022991124,0.72,221.91,221.81,21.48]
[1760022991432,0.72,221.91,221.82,4.50815976]
[1760022991627,0.72,221.91,221.83,32.54]
[1760022991833,6.11137881,221.93,221.81,13.20474006]
[1760022992016,0.72,221.9,221.82,32.54]
[1760022993035,0.72,221.89,221.82,32.54]
[1760022993928,0.72,221.89,221.82,37.04813827]
[1760022995336,0.72,221.94,221.83,11.55647521]
[1760022995537,0.72,221.94,221.84,0.68]
[1760022996028,0.72,221.94,221.85,4.50755014]
[1760022996233,1.60540879,221.95,221.84,0.68]
[1760022996234,1.60540879,221.91,221.86,32.54]
[1760022996414,2.32540879,221.9,221.86,32.54]
[1760022996606,1.60540879,221.87,221.77,4.50543326]
[1760022996807,1.60540879,221.82,221.71,0.68]
[1760022997030,24.9554446,221.86,221.71,0.68]
[1760022997031,0.72,221.81,221.71,0.68]
[1760022997221,0.72,221.81,221.73,37.04978868]
[1760022997420,0.72,221.81,221.73,50.28228957]
[1760022997618,3.54548502,221.87,221.73,50.28228957]
[1760022997619,20.8,221.88,221.74,32.35647521]
[1760022997827,2.98572558,221.87,221.76,10.87647521]
[1760022998024,4.15743855,221.86,221.77,32.54]
[1760022998210,1.60540879,221.82,221.74,25.30977136]
[1760022998532,1.60540879,221.8,221.75,32.54]
[1760022998738,0.72,221.79,221.75,32.54]
[1760022999150,1.60540879,221.81,221.75,32.54]
[1760022999335,0.72,221.81,221.75,32.54]
[1760022999634,2.32540879,221.81,221.75,32.54]
[1760023000025,2.32540879,221.81,221.75,37.04938817]
[1760023000240,0.72,221.81,221.75,37.04938817]
[1760023001039,2.32540879,221.8,221.75,32.54]
[1760023001250,0.72,221.79,221.75,32.54]
[1760023001736,0.72,221.78,221.75,32.54]
[1760023001929,0.72,221.77,221.75,32.54]
[1760023002125,0.72,221.77,221.73,4.50998391]
[1760023002332,0.72,221.77,221.76,32.54]
[1760023002524,0.7,221.79,221.76,32.54]
[1760023002943,0.7,221.78,221.76,32.54]
[1760023004646,0.67,221.77,221.72,35.16]
[1760023004828,1.60540879,221.73,221.64,0.69]
[1760023005033,2.27540879,221.72,221.65,32.54]
[1760023005341,1.60540879,221.71,221.66,32.54]
[1760023005535,2.27540879,221.7,221.66,32.54]
[1760023005845,1.60540879,221.71,221.66,32.54]
[1760023006138,3.17664379,221.71,221.66,32.54]
[1760023006345,2.50664379,221.68,221.61,0.69]
[1760023006647,3.17664379,221.67,221.62,32.54]
[1760023006826,3.17664379,221.66,221.62,32.54]
[1760023009444,2.50664379,221.67,221.62,32.54]
[1760023009939,2.50664379,221.67,221.62,37.05220091]
[1760023010267,20.8,221.7,221.62,37.05220091]
[1760023010427,3.62827417,221.72,221.63,0.69]
[1760023010748,24.42827417,221.72,221.63,0.69]
[1760023011042,21.92163038,221.72,221.64,4.51182097]
[1760023011360,2.50664379,221.69,221.62,32.54]
[1760023011538,2.50664379,221.67,221.63,32.56]
[1760023011733,0.67,221.66,221.63,32.56]
[1760023012462,0.67,221.65,221.58,4.51285134]
[1760023012675,2.50664379,221.64,221.59,32.56]
[1760023012941,3.17664379,221.65,221.59,37.76272255]
[1760023013141,3.62827417,221.71,221.6,0.69]
[1760023013343,21.25163038,221.7,221.6,0.69]
[1760023013548,1.12163038,221.71,221.6,0.69]
[1760023014051,25.310019,221.73,221.6,0.69]
[1760023014052,20.8,221.73,221.61,10.87647521]
[1760023014248,20.8,221.72,221.62,0.69]
[1760023014939,5.18000752,221.73,221.63,4.51202454]
[1760023015137,2.50664379,221.71,221.64,32.56]
[1760023015337,3.62827417,221.7,221.64,32.56]
[1760023015536,0.67,221.7,221.64,32.56]
[1760023015751,3.17664379,221.7,221.64,32.56]
[1760023015934,3.17664379,221.7,221.63,4.51202454]
[1760023016260,3.17664379,221.7,221.64,37.0716829]
[1760023016551,3.17664379,221.7,221.65,32.56]
[1760023016743,0.67,221.7,221.65,32.56]
[1760023016929,2.50664379,221.72,221.66,32.56]
[1760023017129,2.95827417,221.72,221.66,32.56]
[1760023017349,0.67,221.73,221.66,32.56]
[1760023017665,2.50664379,221.73,221.66,32.56]
[1760023017954,2.50664379,221.67,221.62,32.56]
[1760023018165,0.67,221.66,221.62,32.56]
[1760023018734,0.67,221.66,221.62,37.07222166]
[1760023019135,0.67,221.66,221.62,32.56]
[1760023019442,0.67,221.65,221.62,32.56]
[1760023019648,3.17664379,221.64,221.63,32.56]
[1760023020143,6.29105188,221.66,221.63,32.56]
[1760023020358,4.51060386,221.7,221.63,37.76199867]
[1760023020359,0.45163038,221.7,221.63,37.76199867]
[1760023020661,6.74268226,221.7,221.63,37.76199867]
[1760023020857,27.76105188,221.71,221.63,37.76199867]
[1760023021061,6.74268226,221.7,221.63,37.76199867]
[1760023021544,6.29105188,221.68,221.63,32.56]
[1760023021753,6.29105188,221.65,221.63,32.56]
[1760023021944,6.29105188,221.66,221.61,4.51240744]
[1760023022154,6.96105188,221.66,221.62,32.56]
[1760023022759,6.29105188,221.67,221.62,37.07221148]
[1760023022961,0.67,221.69,221.62,37.76221148]
[1760023023137,6.96105188,221.69,221.62,37.07221148]
[1760023023337,6.29105188,221.67,221.62,32.56]
[1760023023566,6.29105188,221.65,221.62,32.56]
[1760023023739,6.96105188,221.65,221.62,32.56]
[1760023023934,6.29105188,221.65,221.62,32.56]
[1760023024160,6.29105188,221.63,221.62,32.56]
[1760023024344,6.96105188,221.64,221.62,32.56]
[1760023024541,0.45163038,221.67,221.62,32.56]
[1760023024748,0.45163038,221.67,221.62,37.07221498]
[1760023025143,0.45163038,221.67,221.62,251.27221498]
[1760023025349,20.8,221.7,221.63,0.69]
[1760023025673,27.09105188,221.71,221.63,214.89]
[1760023025854,6.96105188,221.7,221.63,214.89]
[1760023026168,6.29105188,221.64,221.63,214.2]
[1760023026347,6.29105188,221.65,221.63,214.2]
[1760023026544,6.96105188,221.65,221.63,214.2]
[1760023027747,0.67,221.65,221.63,214.2]
[1760023028163,0.67,221.64,221.63,214.2]
[1760023028441,6.96105188,221.64,221.63,80.9]
[1760023028849,11.92450323,221.64,221.63,80.9]
[1760023029157,14.91904494,221.64,221.63,80.9]
[1760023029365,10.40722397,221.64,221.63,80.9]
[1760023029552,14.91904494,221.64,221.63,80.9]
[1760023029744,8.62799306,221.64,221.63,80.9]
[1760023029957,14.91904494,221.64,221.63,80.9]
[1760023031470,25.79552015,221.64,221.63,80.9]
[1760023033274,29.56087292,221.64,221.63,80.9]
[1760023034255,25.79552015,221.64,221.63,73.28549301]
[1760023038863,3.44617209,221.64,221.63,73.28549301]
[1760023039070,9.73722397,221.64,221.63,73.28549301]
[1760023039761,14.24904494,221.64,221.63,73.28549301]
[1760023040157,9.73722397,221.64,221.63,73.28549301]
[1760023040375,2.99454171,221.64,221.63,73.28549301]
[1760023040554,2.99454171,221.64,221.63,73.95549301]
[1760023042454,2.99454171,221.64,221.63,0.67]
[1760023042655,2.99454171,221.64,221.63,5.18202454]
[1760023042963,2.95923651,221.69,221.63,5.18202454]
[1760023043188,3.01686488,221.68,221.64,33.23]
[1760023043479,0.45163038,221.71,221.65,0.67]
[1760023043682,3.01780065,221.7,221.67,15.78923624]
[1760023043851,3.7545127,221.77,221.68,33.23]
[1760023043852,2.50760613,221.77,221.68,33.23]
[1760023044052,3.017189,221.76,221.69,0.67]
[1760023044282,3.017189,221.75,221.7,32.56]
[1760023044457,10.24625094,221.81,221.71,0.67]
[1760023044458,3.017189,221.74,221.71,0.67]
[1760023044656,3.7545127,221.8,221.72,32.56]
[1760023044985,3.01752228,221.79,221.75,20.8]
[1760023045163,2.50760613,221.78,221.7,13.30329056]
[1760023045355,3.01883713,221.77,221.72,0.67]
[1760023045561,3.01883713,221.76,221.73,33.23]
[1760023045876,3.7545127,221.83,221.74,0.67]
[1760023046076,3.01793897,221.82,221.75,32.56]
[1760023046253,3.01793897,221.81,221.76,0.67]
[1760023046453,3.01793897,221.8,221.77,32.56]
[1760023046671,6.73225463,221.84,221.78,0.67]
[1760023046977,3.01749016,221.83,221.79,32.56]
[1760023047181,3.01749016,221.82,221.8,0.67]
[1760023047368,0.45163038,221.85,221.81,32.56]
[1760023047557,3.016817,221.84,221.81,32.56]
[1760023047758,3.016817,221.83,221.81,32.56]
[1760023047966,3.016817,221.82,221.81,32.56]
[1760023048576,3.016817,221.82,221.81,32.54]
[1760023049472,4.95920216,221.85,221.81,32.54]
[1760023049672,3.01553651,221.84,221.81,32.54]
[1760023049883,3.01553651,221.83,221.81,32.54]
[1760023050181,11.23982641,221.85,221.81,32.54]
[1760023050365,3.01550114,221.84,221.81,32.54]
[1760023050572,3.01550114,221.83,221.81,33.21]
[1760023050768,6.73225463,221.87,221.82,0.67]
[1760023051080,6.28062425,221.88,221.83,0.67]
[1760023051278,3.01377841,221.87,221.84,33.21]
[1760023051490,11.2392179,221.88,221.85,32.54]
[1760023051678,3.01161677,221.87,221.85,32.54]
[1760023051856,0.71,221.87,221.81,0.67]
[1760023052057,0.71,221.87,221.8,4.50852253]
[1760023052058,0.71,221.87,221.82,32.54]
[1760023052261,11.2392179,221.88,221.82,33.21]
[1760023052458,11.2392179,221.88,221.82,32.54]
[1760023052661,3.00981817,221.87,221.8,0.67]
[1760023052861,4.95859365,221.88,221.8,32.54]
[1760023052862,4.17162915,221.86,221.8,32.54]
[1760023053085,6.28062425,221.84,221.8,32.54]
[1760023053276,6.73225463,221.88,221.81,0.67]
[1760023053474,3.00864877,221.87,221.81,0.67]
[1760023053666,6.73225463,221.88,221.81,0.67]
[1760023053868,21.25163038,221.89,221.81,0.67]
[1760023054076,25.75838221,221.89,221.81,0.67]
[1760023054270,6.28062425,221.88,221.8,32.54]
[1760023054478,6.28062425,221.87,221.8,32.54]
[1760023054676,6.28062425,221.87,221.79,5.17876955]
[1760023054975,6.28062425,221.84,221.8,32.54]
[1760023055184,6.28062425,221.85,221.8,32.54]
[1760023055688,6.28062425,221.85,221.78,137.80890069]
[1760023055689,6.99062425,221.85,221.81,32.54]
[1760023055891,7.44225463,221.84,221.81,32.54]
[1760023056192,6.99062425,221.84,221.81,32.54]
[1760023056603,1.16163038,221.83,221.81,32.52]
[1760023056799,6.28062425,221.82,221.72,144.57520591]
[1760023057095,6.28062425,221.8,221.73,33.19]
[1760023057396,6.28062425,221.76,221.66,10.87647521]
[1760023057695,6.28062425,221.74,221.67,53.99]
[1760023057902,6.99062425,221.76,221.68,33.19]
[1760023058589,6.99062425,221.76,221.69,4.51080337]
[1760023059805,11.95164736,221.76,221.68,33.19]
[1760023060014,6.28062425,221.75,221.68,33.19]
[1760023061222,0.45163038,221.74,221.69,32.52]
[1760023061383,0.45163038,221.74,221.7,32.52]
[1760023061589,1.16163038,221.74,221.7,32.52]
[1760023061922,6.28062425,221.76,221.7,33.19]
[1760023062099,6.73225463,221.76,221.7,33.19]
[1760023062872,6.73225463,221.76,221.65,20.8]
[1760023062873,6.28062425,221.72,221.65,20.8]
[1760023062997,10.87647521,221.75,221.66,32.52]
[1760023063310,6.73225463,221.74,221.67,33.19]
[1760023063520,0.45163038,221.74,221.68,0.67]
[1760023063881,0.45163038,221.74,221.62,0.67]
[1760023063882,6.28062425,221.71,221.62,0.67]
[1760023064094,6.28062425,221.69,221.63,32.52]
[1760023064808,6.28062425,221.69,221.62,0.67]
[1760023065028,0.45163038,221.68,221.63,32.52]
[1760023065310,6.28062425,221.64,221.63,32.52]
[1760023065895,6.28062425,221.66,221.63,32.52]
[1760023066210,0.45163038,221.69,221.64,0.71]
[1760023067613,0.45163038,221.69,221.63,32.52]
[1760023067614,7.45225463,221.69,221.63,37.03193537]
[1760023067817,6.28062425,221.67,221.63,32.52]
[1760023067986,0.72,221.66,221.63,32.52]
[1760023068189,20.8,221.7,221.64,0.71]
[1760023068420,0.45163038,221.69,221.64,0.71]
[1760023069002,1.17163038,221.69,221.63,37.03189665]
[1760023069710,2.7766162,221.69,221.63,37.03189665]
[1760023069914,7.28746863,221.69,221.63,32.52]
[1760023070097,1.60498582,221.68,221.63,32.52]
[1760023070300,1.60498582,221.67,221.63,32.52]
[1760023070518,2.32498582,221.67,221.63,32.52]
[1760023070713,4.51085243,221.69,221.57,0.71]
[1760023070714,1.60498582,221.65,221.57,0.71]
[1760023070914,1.60498582,221.63,221.58,32.52]
[1760023071232,20.8,221.66,221.57,32.52]
[1760023071233,1.60498582,221.59,221.57,32.52]
[1760023071398,0.72,221.58,221.57,32.52]
[1760023071718,4.51324637,221.57,221.52,0.1]
[1760023071930,1.60498582,221.55,221.53,32.52]
[1760023072109,3.95554253,221.55,221.53,32.52]
[1760023072297,3.95554253,221.55,221.52,0.1]
[1760023072622,4.67554253,221.55,221.52,0.1]
[1760023073418,3.95554253,221.55,221.52,0.1]
[1760023074224,4.40717291,221.55,221.52,0.1]
[1760023075119,3.95554253,221.55,221.52,0.1]
[1760023077417,4.67554253,221.55,221.52,0.1]
[1760023078029,5.12717291,221.55,221.52,0.1]
[1760023078334,0.72,221.54,221.52,0.1]
[1760023078531,4.67554253,221.54,221.52,0.1]
[1760023080025,0.72,221.54,221.52,0.1]
[1760023080427,0.72,221.53,221.52,0.1]
[1760023080732,8.46920236,221.55,221.52,0.1]
[1760023080915,0.72,221.54,221.52,0.1]
[1760023081347,4.67554253,221.53,221.52,0.1]
[1760023081514,5.12717291,221.53,221.52,0.1]
[1760023081708,1.17163038,221.53,221.52,0.1]
[1760023081938,5.12717291,221.53,221.52,0.1]
[1760023082229,16.00364812,221.53,221.52,0.1]
[1760023082832,24.47325195,221.53,221.52,0.1]
[1760023083034,24.47325195,221.53,221.41,0.1]
[1760023083035,31.67647521,221.49,221.41,0.1]
[1760023083239,10.87647521,221.47,221.41,0.1]
[1760023083416,3.95554253,221.43,221.41,0.1]
[1760023083615,1.17163038,221.46,221.41,0.1]
[1760023083825,10.87647521,221.42,221.41,0.1]
[1760023084034,12.04810559,221.42,221.41,0.1]
[1760023084820,16.56440944,221.42,221.41,0.1]
[1760023086749,49.10440944,221.42,221.41,0.1]
[1760023087060,53.05995197,221.42,221.41,0.1]
[1760023087223,49.10440944,221.42,221.41,0.1]
[1760023089183,49.10440944,221.42,221.41,1e-08]
[1760023089327,53.05995197,221.42,221.4,0.1]
[1760023089528,14.83201774,221.41,221.4,0.1]
[1760023089850,14.83201774,221.41,221.38,0.1]
[1760023089851,31.67647521,221.39,221.38,0.1]
[1760023090036,40.03919065,221.39,221.38,0.1]
[1760023090240,40.75919065,221.39,221.38,0.1]
[1760023090641,32.84810559,221.39,221.38,0.1]
[1760023090847,36.80364812,221.39,221.38,0.1]
[1760023091155,41.32056396,221.39,221.38,0.1]
[1760023091455,45.27610649,221.39,221.38,0.1]
[1760023091659,77.83610649,221.39,221.38,0.1]
[1760023092232,48.56364812,221.39,221.38,0.1]
[1760023092564,53.08056396,221.39,221.38,0.1]
[1760023092951,57.03610649,221.39,221.38,0.1]
[1760023094178,50.73492932,221.39,221.38,0.1]
[1760023094343,38.97492932,221.39,221.38,0.1]
[1760023094545,71.53492932,221.39,221.38,0.1]
[1760023095471,10.87647521,221.34,221.26,0.7]
[1760023095680,1.60990789,221.3,221.26,0.7]
[1760023095881,1.60990789,221.28,221.27,0.7]
[1760023096066,1.60990789,221.28,221.21,41.48]
[1760023096067,1.60990789,221.28,221.24,0.7]
[1760023096260,1.60990789,221.28,221.25,0.7]
[1760023096663,1.60990789,221.28,221.23,0.7]
[1760023096863,1.60990789,221.28,221.24,0.7]
[1760023097071,1.60990789,221.28,221.25,0.7]
[1760023097880,1.60990789,221.26,221.2,4.5206568]
[1760023098180,1.60990789,221.26,221.21,0.7]
[1760023098763,0.45163038,221.28,221.22,0.7]
[1760023098971,1.60990789,221.27,221.22,0.7]
[1760023099658,1.60990789,221.27,221.23,4.52018261]
[1760023099983,4.97038857,221.3,221.24,0.7]
[1760023100153,1.60990789,221.27,221.24,0.7]
[1760023100357,1.60990789,221.29,221.24,0.7]
[1760023100566,0.45163038,221.32,221.24,0.7]
[1760023101574,0.45163038,221.32,221.24,5.21981033]
[1760023101776,1.60990789,221.29,221.24,5.21981033]
[1760023101995,1.60990789,221.29,221.25,0.7]
[1760023102181,1.60990789,221.29,221.24,4.51981033]
[1760023102380,1.60990789,221.29,221.25,0.7]
[1760023102689,1.60990789,221.31,221.26,0.7]
[1760023103065,2.06153827,221.33,221.27,0.7]
[1760023103783,2.06153827,221.33,221.28,4.51916124]
[1760023104084,2.06153827,221.33,221.29,0.7]
[1760023104407,0.45163038,221.33,221.3,0.7]
[1760023104579,0.45163038,221.39,221.3,0.7]
[1760023104779,1.60990789,221.42,221.3,0.7]
[1760023104975,0.45163038,221.41,221.3,0.7]
[1760023105174,1.60990789,221.38,221.3,0.7]
[1760023105887,1.60990789,221.38,221.31,4.51854864]
[1760023106083,1.60990789,221.38,221.32,0.7]
[1760023106905,4.96855822,221.39,221.32,0.7]
[1760023107197,2.27990789,221.38,221.29,20.8]
[1760023107374,1.60990789,221.33,221.27,37.07936548]
[1760023107698,1.60990789,221.31,221.25,0.7]
[1760023107880,1.60990789,221.31,221.25,5.21975864]
[1760023108080,64.23647521,221.39,221.22,0.7]
[1760023108081,1.60990789,221.27,221.22,0.7]
[1760023108896,1.60990789,221.27,221.2,5.22079379]
[1760023109898,5.64042032,221.3,221.2,15.82278294]
[1760023110200,4.97041451,221.3,221.21,0.7]
[1760023110393,1.60990789,221.28,221.21,0.7]
[1760023110607,1.60990789,221.31,221.23,20.8]
[1760023110776,1.60990789,221.31,221.24,0.7]
[1760023111403,1.60990789,221.33,221.24,0.7]
[1760023111604,1.60990789,221.35,221.24,0.7]
[1760023111791,0.45163038,221.34,221.24,0.7]
[1760023111989,0.45163038,221.34,221.25,4.51977401]
[1760023112201,0.45163038,221.34,221.26,0.7]
[1760023113099,2.06153827,221.35,221.26,0.7]
[1760023113489,6.57936301,221.35,221.26,0.7]
[1760023113990,7.24936301,221.35,221.27,4.51936548]
[1760023114374,1.60990789,221.29,221.23,0.7]
[1760023115298,1.60990789,221.25,221.21,32.56]
[1760023115703,0.67,221.25,221.21,32.56]
[1760023116220,0.67,221.24,221.21,32.56]
[1760023116513,3.96658224,221.24,221.21,32.56]
[1760023116811,3.96658224,221.24,221.19,4.52093834]
[1760023117802,0.67,221.26,221.19,4.52093834]
[1760023117979,0.45163038,221.29,221.2,0.7]
[1760023118186,3.0092574,221.28,221.21,4.52059129]
[1760023118405,7.42747002,221.27,221.2,0.7]
[1760023118604,3.0092574,221.26,221.19,20.8]
[1760023118815,3.96658224,221.25,221.18,0.1]
[1760023119111,3.96658224,221.21,221.18,0.1]
[1760023119421,3.96658224,221.19,221.18,0.1]
[1760023120119,0.45163038,221.22,221.18,0.1]
[1760023120290,3.96658224,221.24,221.18,0.8]
[1760023120493,3.46487029,221.23,221.18,0.8]
[1760023120697,3.01323991,221.22,221.18,5.32115631]
[1760023120888,0.45163038,221.23,221.18,5.32115631]
[1760023120889,3.01323991,221.21,221.18,0.1]
[1760023121206,0.67,221.21,221.18,0.1]
[1760023121408,3.01470356,221.2,221.18,4.62119452]
[1760023121611,0.67,221.21,221.18,4.62119452]
[1760023121807,3.96658224,221.22,221.18,4.62119452]
[1760023122107,3.01465781,221.21,221.18,0.1]
[1760023122290,3.0164225,221.2,221.18,0.1]
[1760023122493,4.63658224,221.22,221.18,0.1]
[1760023122699,3.01642214,221.21,221.18,0.1]
[1760023122895,7.43463476,221.2,221.18,0.1]
[1760023123109,3.01655913,221.19,221.18,0.1]
[1760023123311,0.7,221.19,221.18,0.1]
[1760023123494,3.71858033,221.19,221.18,0.1]
[1760023124198,7.68516257,221.19,221.18,0.1]
[1760023124597,8.13679295,221.19,221.18,0.1]
[1760023124806,12.65779299,221.19,221.18,0.1]
[1760023125114,8.13679295,221.19,221.18,0.1]
[1760023125488,0.45163038,221.23,221.18,5.29120444]
[1760023125686,3.02011422,221.22,221.18,16.59421556]
[1760023125892,5.12821262,221.27,221.19,0.67]
[1760023126192,3.01999681,221.26,221.2,4.52079566]
[1760023126496,3.47162719,221.25,221.2,4.52079566]
[1760023126813,3.01999681,221.24,221.21,21.47]
[1760023127016,5.02787391,221.32,221.2,15.82278481]
[1760023127017,0.45163038,221.33,221.23,20.8]
[1760023127223,3.02242889,221.32,221.24,33.23]
[1760023127400,3.02242889,221.31,221.25,0.67]
[1760023127713,8.86020141,221.38,221.27,20.8]
[1760023127887,3.0244815,221.37,221.28,0.67]
[1760023128090,3.47611188,221.36,221.28,0.67]
[1760023128291,3.0244815,221.35,221.29,4.51895702]
[1760023128497,3.0244815,221.34,221.29,4.51895702]
[1760023128718,3.0244815,221.33,221.3,0.67]
[1760023129018,0.45163038,221.37,221.3,0.67]
[1760023129206,3.02602955,221.36,221.3,0.67]
[1760023129409,3.02602955,221.35,221.25,4.51959369]
[1760023129724,3.96658224,221.33,221.25,4.51959369]
[1760023130013,3.47765993,221.32,221.25,4.51959369]
[1760023130188,3.02602955,221.31,221.25,4.51959369]
[1760023130390,6.36699909,221.32,221.25,4.51959369]
[1760023130617,3.02776548,221.31,221.25,4.51959369]
[1760023130807,6.36699909,221.32,221.25,4.51959369]
[1760023131010,6.36699909,221.32,221.25,15.81902871]
[1760023131011,3.02781104,221.31,221.25,15.81902871]
[1760023131190,7.07699909,221.33,221.25,15.81902871]
[1760023131391,3.02812723,221.32,221.26,0.67]
[1760023131587,5.91536871,221.33,221.26,0.67]
[1760023131791,3.02810624,221.32,221.26,0.67]
[1760023132003,5.91536871,221.33,221.26,0.67]
[1760023132207,3.02809592,221.32,221.26,0.67]
[1760023132409,0.45163038,221.34,221.26,0.67]
[1760023132601,3.02832564,221.33,221.27,4.51936548]
[1760023132811,3.02832564,221.32,221.27,4.51936548]
[1760023133130,0.71,221.32,221.27,4.51936548]
[1760023133696,5.91536871,221.29,221.23,4.52018261]
[1760023133910,5.91536871,221.29,221.24,32.54]
[1760023134400,6.62536871,221.31,221.24,32.54]
[1760023134604,0.45163038,221.33,221.25,5.18977401]
[1760023134813,3.02867744,221.32,221.25,16.48920903]
[1760023135017,6.36699909,221.33,221.25,16.48920903]
[1760023135192,3.02865579,221.32,221.25,16.48920903]
[1760023135394,7.07699909,221.33,221.25,16.48920903]
[1760023135902,11.59516012,221.33,221.25,4.51977401]
[1760023136330,5.91536871,221.29,221.19,11.97240309]
[1760023136618,5.91536871,221.25,221.19,4.52100004]
[1760023136792,5.91536871,221.23,221.18,4.62118765]
[1760023136996,5.91536871,221.21,221.18,4.62118765]
[1760023137195,6.62536871,221.21,221.18,4.62118765]
[1760023137608,6.62536871,221.21,221.18,0.1]
[1760023137813,0.71,221.2,221.18,0.1]
[1760023140424,5.91536871,221.22,221.18,0.1]
[1760023140632,0.45163038,221.21,221.18,0.1]
[1760023140825,0.71,221.19,221.18,0.1]